lending/lending_fUSD_20250429
["ID","MTS","AMOUNT","RATE_DAILY","PERIOD"]
[359307404,1745903441992,-150.0,0.00038411,30]
[359307405,1745903442002,-154.71054526,0.00038411,30]
[359307406,1745903442012,-517.0,0.00038411,30]
[359307407,1745903442022,-150.0,0.00038411,30]
[359307408,1745903442032,-150.0,0.00038411,30]
[359307409,1745903442041,-150.0,0.00038413,2]
[359307410,1745903442051,-150.0,0.00038426,2]
[359307411,1745903442061,-500.0,0.00038438,30]
[359307412,1745903442071,-150.0,0.00038438,30]
[359307413,1745903442081,-517.0,0.00038438,30]
[359307414,1745903442091,-253.9059993,0.00038438,30]
[359307415,1745903442100,-268.73113194,0.00038438,30]
[359307416,1745903442111,-150.0,0.00038439,2]
[359307417,1745903442120,-150.0,0.00038441,2]
[359307418,1745903442130,-2074.88688529,0.00038447,2]
[359307419,1745903442140,-2000.0,0.00038448,8]
[359307420,1745903442149,-150.0,0.00038462,2]
[359307421,1745903442158,-150.0,0.00038464,2]
[359307422,1745903442167,-500.0,0.00038466,30]
[359307423,1745903442177,-216.85287467,0.00038466,30]
[359307424,1745903442187,-517.0,0.00038466,30]
[359307425,1745903442197,-150.0,0.00038472,2]
[359307426,1745903442207,-150.0,0.00038477,2]
[359307427,1745903442216,-150.0,0.00038481,2]
[359307428,1745903442227,-500.0,0.00038493,30]
[359307429,1745903442236,-517.0,0.00038493,30]
[359307430,1745903442247,-1675.0,0.000385,7]
[359307431,1745903442259,-158.83,0.000385,2]
[359307432,1745903442268,-150.0,0.00038506,2]
[359307433,1745903442278,-150.0,0.00038507,2]
[359307434,1745903442288,-64964.9804044,0.0003851,3]
[359307435,1745903442298,-32482.4902022,0.0003851,3]
[359307436,1745903442307,-434.3220474,0.0003852,30]
[359307437,1745903442317,-470.0,0.0003852,30]
[359307438,1745903442326,-470.0,0.0003852,30]
[359307439,1745903442336,-470.0,0.0003852,30]
[359307440,1745903442345,-470.0,0.0003852,30]
[359307441,1745903442355,-470.0,0.0003852,30]
[359307442,1745903442364,-470.0,0.0003852,30]
[359307443,1745903442374,-279.92583834,0.0003852,30]
[359307444,1745903442384,-470.0,0.0003852,30]
[359307445,1745903442393,-470.0,0.0003852,30]
[359307446,1745903442403,-558.87,0.0003852,30]
[359307447,1745903442412,-470.0,0.0003852,5]
[359307448,1745903442422,-320.54185434,0.0003852,30]
[359307449,1745903442432,-688.18,0.0003852,30]
[359307450,1745903442446,-470.0,0.0003852,30]
[359307451,1745903442455,-470.0,0.0003852,30]
[359307452,1745903442464,-470.0,0.0003852,30]
[359307453,1745903442474,-470.0,0.0003852,30]
[359307454,1745903442483,-470.0,0.0003852,30]
[359307455,1745903442493,-260.0,0.0003852,30]
[359307456,1745903442503,-470.0,0.0003852,30]
[359307457,1745903442513,-470.0,0.0003852,30]
[359307458,1745903442522,-470.0,0.0003852,30]
[359307459,1745903442531,-470.0,0.0003852,30]
[359307460,1745903442540,-470.0,0.0003852,30]
[359307461,1745903442550,-470.0,0.0003852,30]
[359307462,1745903442559,-1053.22,0.0003852,30]
[359307463,1745903442569,-470.0,0.0003852,30]
[359307464,1745903442578,-470.0,0.0003852,30]
[359307465,1745903442588,-470.0,0.0003852,30]
[359307466,1745903442597,-471.82,0.0003852,30]
[359307467,1745903442607,-470.0,0.0003852,30]
[359307468,1745903442616,-470.0,0.0003852,30]
[359307469,1745903442626,-250.0,0.0003852,30]
[359307470,1745903442636,-470.0,0.0003852,30]
[359307471,1745903442647,-470.0,0.0003852,30]
[359307472,1745903442657,-470.0,0.0003852,30]
[359307473,1745903442667,-470.0,0.0003852,30]
[359307474,1745903442676,-470.0,0.0003852,30]
[359307475,1745903442686,-470.0,0.0003852,30]
[359307476,1745903442695,-470.0,0.0003852,30]
[359307477,1745903442705,-470.0,0.0003852,30]
[359307478,1745903442714,-470.0,0.0003852,30]
[359307479,1745903442723,-470.0,0.0003852,30]
[359307480,1745903442733,-470.0,0.0003852,30]
[359307481,1745903442742,-470.0,0.0003852,30]
[359307482,1745903442752,-470.0,0.0003852,30]
[359307483,1745903442763,-470.0,0.0003852,30]
[359307484,1745903442773,-293.13076229,0.0003852,30]
[359307485,1745903442782,-470.0,0.0003852,30]
[359307486,1745903442791,-535.32,0.0003852,30]
[359307487,1745903442801,-470.0,0.0003852,30]
[359307488,1745903442810,-470.0,0.0003852,30]
[359307489,1745903442819,-470.0,0.0003852,7]
[359307490,1745903442828,-539.21,0.0003852,30]
[359307491,1745903442837,-470.0,0.0003852,30]
[359307492,1745903442846,-470.0,0.0003852,30]
[359307493,1745903442855,-470.0,0.0003852,30]
[359307494,1745903442864,-312.4748228,0.0003852,30]
[359307495,1745903442874,-470.0,0.0003852,30]
[359307496,1745903442883,-437.47151271,0.0003852,30]
[359307497,1745903442893,-470.0,0.0003852,30]
[359307498,1745903442902,-526.92,0.0003852,30]
[359307499,1745903442911,-535.49,0.0003852,30]
[359307500,1745903442921,-210.18825711,0.0003852,30]
[359307501,1745903442931,-470.0,0.0003852,30]
[359307502,1745903442940,-561.75,0.0003852,30]
[359307503,1745903442951,-470.0,0.0003852,30]
[359307504,1745903442961,-706.86,0.0003852,30]
[359307505,1745903442970,-470.0,0.0003852,30]
[359307506,1745903442979,-470.0,0.0003852,30]
[359307507,1745903442990,-583.36,0.0003852,30]
[359307508,1745903442999,-470.0,0.0003852,30]
[359307509,1745903443009,-470.0,0.0003852,30]
[359307510,1745903443018,-470.0,0.0003852,30]
[359307511,1745903443028,-470.0,0.0003852,30]
[359307512,1745903443039,-470.0,0.0003852,30]
[359307513,1745903443050,-603.13965771,0.0003852,30]
[359307515,1745903443060,-470.0,0.0003852,30]
[359307517,1745903443070,-470.0,0.0003852,30]
[359307519,1745903443080,-470.0,0.0003852,30]
[359307520,1745903443089,-500.71,0.0003852,30]
[359307521,1745903443099,-470.0,0.0003852,30]
[359307522,1745903443108,-470.0,0.0003852,30]
[359307523,1745903443118,-470.0,0.0003852,30]
[359307524,1745903443128,-470.0,0.0003852,30]
[359307525,1745903443137,-470.0,0.0003852,30]
[359307526,1745903443146,-470.0,0.0003852,30]
[359307527,1745903443156,-470.0,0.0003852,30]
[359307528,1745903443165,-470.0,0.0003852,30]
[359307529,1745903443175,-470.0,0.0003852,30]
[359307530,1745903443185,-611.31,0.0003852,30]
[359307531,1745903443194,-470.0,0.0003852,30]
[359307532,1745903443205,-470.0,0.0003852,30]
[359307533,1745903443215,-470.0,0.0003852,30]
[359307534,1745903443225,-547.94515587,0.0003852,30]
[359307535,1745903443234,-470.0,0.0003852,30]
[359307536,1745903443243,-470.0,0.0003852,30]
[359307537,1745903443252,-470.0,0.0003852,30]
[359307538,1745903443263,-470.0,0.0003852,30]
[359307539,1745903443274,-470.0,0.0003852,30]
[359307540,1745903443284,-470.0,0.0003852,30]
[359307541,1745903443293,-470.0,0.0003852,30]
[359307542,1745903443304,-326.99267636,0.0003852,30]
[359307543,1745903443316,-470.0,0.0003852,30]
[359307544,1745903443325,-470.0,0.0003852,30]
[359307545,1745903443335,-470.0,0.0003852,30]
[359307546,1745903443345,-470.0,0.0003852,30]
[359307547,1745903443355,-470.0,0.0003852,30]
[359307548,1745903443365,-470.0,0.0003852,30]
[359307549,1745903443375,-470.0,0.0003852,30]
[359307550,1745903443384,-661.34,0.0003852,30]
[359307551,1745903443395,-470.0,0.0003852,30]
[359307552,1745903443406,-470.0,0.0003852,30]
[359307553,1745903443415,-470.0,0.0003852,30]
[359307554,1745903443426,-470.0,0.0003852,30]
[359307555,1745903443437,-930.11,0.0003852,30]
[359307556,1745903443448,-381.0751319,0.0003852,30]
[359307557,1745903443457,-219.03813855,0.0003852,30]
[359307558,1745903443468,-611.71,0.0003852,30]
[359307559,1745903443478,-470.0,0.0003852,30]
[359307560,1745903443487,-602.27,0.0003852,30]
[359307561,1745903443498,-470.0,0.0003852,30]
[359307562,1745903443508,-470.0,0.0003852,30]
[359307563,1745903443516,-470.0,0.0003852,30]
[359307564,1745903443524,-470.0,0.0003852,30]
[359307565,1745903443532,-470.0,0.0003852,30]
[359307566,1745903443540,-470.0,0.0003852,30]
[359307567,1745903443549,-742.56,0.0003852,30]
[359307568,1745903443559,-470.0,0.0003852,30]
[359307569,1745903443568,-470.0,0.0003852,30]
[359307570,1745903443578,-645.2,0.0003852,30]
[359307571,1745903443588,-470.0,0.0003852,30]
[359307572,1745903443780,-470.0,0.0003852,30]
[359307573,1745903443790,-470.17,0.0003852,30]
[359307574,1745903443803,-478.07944562,0.0003852,30]
[359307575,1745903443814,-470.0,0.0003852,30]
[359307576,1745903443823,-470.0,0.0003852,30]
[359307577,1745903443833,-470.0,0.0003852,30]
[359307578,1745903443842,-470.0,0.0003852,30]
[359307579,1745903443851,-470.0,0.0003852,30]
[359307580,1745903443861,-470.0,0.0003852,30]
[359307581,1745903443871,-470.0,0.0003852,30]
[359307582,1745903443881,-470.0,0.0003852,30]
[359307583,1745903443890,-470.0,0.0003852,30]
[359307584,1745903443899,-585.85,0.0003852,2]
[359307585,1745903443909,-470.0,0.0003852,30]
[359307586,1745903443918,-600.65403006,0.0003852,30]
[359307587,1745903443927,-470.0,0.0003852,30]
[359307588,1745903443939,-470.0,0.0003852,30]
[359307589,1745903443948,-626.2,0.0003852,30]
[359307590,1745903443957,-470.0,0.0003852,30]
[359307591,1745903443966,-470.0,0.0003852,30]
[359307592,1745903443976,-525.05,0.0003852,30]
[359307593,1745903443985,-470.0,0.0003852,30]
[359307594,1745903443995,-1079.39,0.0003852,30]
[359307595,1745903444004,-470.0,0.0003852,30]
[359307596,1745903444013,-470.0,0.0003852,30]
[359307597,1745903444024,-470.0,0.0003852,30]
[359307598,1745903444033,-330.45646822,0.0003852,30]
[359307599,1745903444043,-470.0,0.0003852,30]
[359307600,1745903444052,-546.09,0.0003852,30]
[359307601,1745903444062,-1000.0,0.0003852,30]
[359307602,1745903444071,-470.0,0.0003852,30]
[359307603,1745903444080,-470.0,0.0003852,30]
[359307604,1745903444090,-470.0,0.0003852,30]
[359307605,1745903444099,-470.0,0.0003852,30]
[359307606,1745903444109,-470.0,0.0003852,30]
[359307607,1745903444118,-470.0,0.0003852,30]
[359307608,1745903444128,-470.0,0.0003852,30]
[359307609,1745903444137,-470.0,0.0003852,30]
[359307610,1745903444146,-470.0,0.0003852,30]
[359307611,1745903444156,-470.0,0.0003852,30]
[359307612,1745903444166,-365.65117305,0.0003852,30]
[359307613,1745903444175,-472.65720014,0.0003852,30]
[359307614,1745903444184,-470.0,0.0003852,30]
[359307615,1745903444194,-470.0,0.0003852,30]
[359307616,1745903444203,-564.21,0.0003852,30]
[359307617,1745903444212,-470.0,0.0003852,30]
[359307618,1745903444221,-470.0,0.0003852,30]
[359307619,1745903444231,-554.62,0.0003852,30]
[359307620,1745903444241,-692.8,0.0003852,30]
[359307621,1745903444250,-470.0,0.0003852,30]
[359307622,1745903444259,-569.87,0.0003852,30]
[359307623,1745903444269,-470.0,0.0003852,30]
[359307624,1745903444278,-470.0,0.0003852,30]
[359307625,1745903444288,-559.25,0.0003852,30]
[359307626,1745903444297,-470.0,0.0003852,30]
[359307627,1745903444307,-470.0,0.0003852,30]
[359307628,1745903444316,-470.0,0.0003852,30]
[359307629,1745903444325,-470.0,0.0003852,30]
[359307630,1745903444335,-470.0,0.0003852,30]
[359307631,1745903444344,-470.0,0.0003852,30]
[359307632,1745903444355,-470.0,0.0003852,30]
[359307633,1745903444366,-1074.26,0.0003852,30]
[359307635,1745903444375,-470.0,0.0003852,30]
[359307636,1745903444385,-470.0,0.0003852,30]
[359307637,1745903444394,-470.0,0.0003852,30]
[359307638,1745903444404,-470.0,0.0003852,30]
[359307640,1745903444413,-470.0,0.0003852,30]
[359307642,1745903444423,-470.0,0.0003852,30]
[359307643,1745903444432,-470.0,0.0003852,30]
[359307645,1745903444447,-3339.36,0.0003852,30]
[359307646,1745903444456,-470.0,0.0003852,30]
[359307647,1745903444465,-470.0,0.0003852,30]
[359307648,1745903444475,-470.0,0.0003852,30]
[359307649,1745903444484,-699.61,0.0003852,30]
[359307650,1745903444493,-470.0,0.0003852,30]
[359307651,1745903444503,-470.0,0.0003852,30]
[359307652,1745903444512,-470.0,0.0003852,30]
[359307653,1745903444521,-470.0,0.0003852,30]
[359307654,1745903444531,-470.0,0.0003852,30]
[359307655,1745903444541,-470.0,0.0003852,30]
[359307656,1745903444550,-470.0,0.0003852,30]
[359307657,1745903444560,-470.0,0.0003852,30]
[359307658,1745903444569,-470.0,0.0003852,30]
[359307659,1745903444579,-470.0,0.0003852,30]
[359307660,1745903444588,-470.0,0.0003852,30]
[359307661,1745903444597,-470.0,0.0003852,30]
[359307662,1745903444607,-470.0,0.0003852,30]
[359307663,1745903444616,-470.0,0.0003852,30]
[359307664,1745903444626,-470.0,0.0003852,30]
[359307665,1745903444635,-470.0,0.0003852,30]
[359307666,1745903444645,-470.0,0.0003852,30]
[359307667,1745903444655,-534.86,0.0003852,30]
[359307668,1745903444664,-470.0,0.0003852,30]
[359307669,1745903444674,-470.0,0.0003852,30]
[359307670,1745903444684,-470.0,0.0003852,30]
[359307671,1745903444694,-522.48,0.0003852,30]
[359307672,1745903444703,-2378.42,0.0003852,30]
[359307673,1745903444713,-470.0,0.0003852,30]
[359307674,1745903444723,-470.0,0.0003852,30]
[359307675,1745903444732,-470.0,0.0003852,30]
[359307676,1745903444742,-852.36,0.0003852,30]
[359307677,1745903444751,-1000.0,0.0003852,7]
[359307678,1745903444761,-470.0,0.0003852,30]
[359307679,1745903444771,-470.0,0.0003852,30]
[359307680,1745903444780,-470.0,0.0003852,30]
[359307681,1745903444790,-349.99503571,0.0003852,30]
[359307682,1745903444800,-470.0,0.0003852,30]
[359307683,1745903444809,-1034.74,0.0003852,30]
[359307684,1745903444819,-530.26590878,0.0003852,30]
[359307685,1745903444828,-470.0,0.0003852,30]
[359307686,1745903444838,-470.0,0.0003852,30]
[359307687,1745903444848,-470.0,0.0003852,30]
[359307688,1745903444857,-470.0,0.0003852,30]
[359307689,1745903444867,-470.0,0.0003852,30]
[359307690,1745903444877,-470.0,0.0003852,30]
[359307691,1745903444886,-473.05,0.0003852,30]
[359307692,1745903444896,-470.0,0.0003852,30]
[359307693,1745903444906,-470.0,0.0003852,30]
[359307694,1745903444915,-470.0,0.0003852,30]
[359307695,1745903444925,-470.0,0.0003852,30]
[359307696,1745903444935,-877.67,0.0003852,30]
[359307697,1745903444945,-502.93,0.0003852,30]
[359307698,1745903444955,-470.0,0.0003852,30]
[359307699,1745903444965,-470.0,0.0003852,30]
[359307700,1745903444974,-470.0,0.0003852,30]
[359307701,1745903444983,-516.06,0.0003852,30]
[359307702,1745903444993,-470.0,0.0003852,30]
[359307703,1745903445003,-470.0,0.0003852,30]
[359307704,1745903445013,-548.54,0.0003852,30]
[359307705,1745903445023,-470.0,0.0003852,30]
[359307706,1745903445032,-470.0,0.0003852,30]
[359307707,1745903445042,-470.0,0.0003852,30]
[359307708,1745903445052,-470.0,0.0003852,30]
[359307709,1745903445061,-470.0,0.0003852,30]
[359307710,1745903445071,-470.0,0.0003852,30]
[359307711,1745903445080,-470.0,0.0003852,30]
[359307712,1745903445090,-470.0,0.0003852,30]
[359307713,1745903445099,-470.0,0.0003852,30]
[359307714,1745903445110,-2666.6276,0.0003852,2]
[359307715,1745903445119,-381.73363305,0.0003852,30]
[359307716,1745903445129,-517.0,0.0003852,30]
[359307717,1745903445139,-270.15399694,0.00038522,2]
[359307718,1745903445149,-150.0,0.00038525,2]
[359307719,1745903445159,-500.0,0.00038526,120]
[359307720,1745903445168,-500.0,0.00038526,120]
[359307721,1745903445177,-500.0,0.00038526,120]
[359307722,1745903445187,-165.3677306,0.0003853,12]
[359307723,1745903445196,-170.41088466,0.0003853,2]
[359307724,1745903445206,-172.69468682,0.0003853,12]
[359307725,1745903445216,-17326.0443,0.0003853,2]
[359307726,1745903445225,-150.0,0.00038536,2]
[359307727,1745903445236,-413.0,0.00038542,90]
[359307728,1745903445246,-517.0,0.00038548,30]
[359307729,1745903445256,-150.0,0.00038557,2]
[359307730,1745903445266,-150.0,0.00038571,2]
[359307731,1745903445276,-500.57404276,0.00038573,5]
[359307732,1745903445286,-211.17216934,0.00038573,5]
[359307733,1745903445295,-500.0,0.00038573,5]
[359307734,1745903445305,-501.55466909,0.00038573,5]
[359307735,1745903445315,-500.33585739,0.00038573,5]
[359307736,1745903445325,-500.0,0.00038573,5]
[359307737,1745903445335,-500.0,0.00038573,5]
[359307738,1745903445345,-500.0,0.00038573,5]
[359307739,1745903445354,-150.0,0.00038573,2]
[359307740,1745903445365,-150.0,0.00038575,2]
[359307741,1745903445374,-517.0,0.00038575,30]
[359307742,1745903445384,-150.0,0.00038578,2]
[359307743,1745903445394,-150.0,0.00038579,2]
[359307744,1745903445403,-150.0,0.00038586,2]
[359307745,1745903445413,-150.0,0.00038593,2]
[359307746,1745903445422,-150.0,0.00038597,2]
[359307747,1745903445431,-150.0,0.00038597,2]
[359307748,1745903445444,-150.0,0.00038601,2]
[359307749,1745903445454,-517.0,0.00038603,30]
[359307750,1745903445463,-389.86069,0.00038603,63]
[359307751,1745903445473,-49464.54270809,0.0003861,3]
[359307752,1745903445859,-911.93905103,0.0003861,3]
[359307753,1745903445870,-367.03000001,0.0003861,3]
[359307754,1745903445919,-5176.70353107,0.0003861,3]
[359307759,1745903446799,-470.0,0.0003852,30]
[359307761,1745903446809,-651.55,0.0003861,3]
[359307785,1745903447097,-764.24118336,0.0003861,3]
[359307786,1745903447109,-39268.31829826,0.0003861,3]
[359307787,1745903447122,-1888.0,0.0003861,3]
[359307788,1745903447875,394.49321527,0.00038356,30]
[359307789,1745903450200,540.7,0.00038356,30]
[359307790,1745903450738,659.51,0.00038356,30]
[359307791,1745903451285,470.0,0.00038356,30]
[359307792,1745903452012,470.0,0.00038356,30]
[359307793,1745903453695,470.0,0.00038356,30]
[359307794,1745903455724,470.0,0.00038356,30]
[359307795,1745903458626,470.0,0.00038356,30]
[359307796,1745903459372,559.2,0.00038356,30]
[359307797,1745903460786,470.0,0.00038356,30]
[359307798,1745903462141,470.0,0.00038356,30]
[359307799,1745903463212,470.0,0.00038356,30]
[359307800,1745903463892,663.93,0.00038356,30]
[359307801,1745903465410,470.0,0.00038356,30]
[359307802,1745903467549,787.47,0.00038356,30]
[359307803,1745903467758,470.0,0.00038356,30]
[359307804,1745903468143,470.0,0.00038356,30]
[359307805,1745903468580,470.0,0.00038356,30]
[359307806,1745903470916,470.0,0.00038356,30]
[359307807,1745903472209,535.95,0.00038356,30]
[359307808,1745903472623,470.0,0.00038356,30]
[359307809,1745903473092,470.0,0.00038356,30]
[359307810,1745903479266,470.0,0.00038356,30]
[359307811,1745903483131,470.0,0.00038356,30]
[359307812,1745903484618,470.0,0.00038356,30]
[359307813,1745903485906,470.0,0.00038356,30]
[359307814,1745903486755,470.0,0.00038356,30]
[359307815,1745903487723,470.0,0.00038356,30]
[359307816,1745903489131,470.0,0.00038356,30]
[359307817,1745903493581,1029.5,0.00038356,30]
[359307818,1745903495636,470.0,0.00038356,30]
[359307819,1745903495951,1130.85,0.00038356,30]
[359307820,1745903496006,470.0,0.00038356,30]
[359307821,1745903502000,470.0,0.00038356,30]
[359307822,1745903503208,470.0,0.00038356,30]
[359307823,1745903504446,3200.22,0.00038356,30]
[359307824,1745903511323,470.0,0.00038356,30]
[359307825,1745903512621,470.0,0.00038356,30]
[359307826,1745903514822,470.0,0.00038356,30]
[359307827,1745903515632,470.0,0.00038356,30]
[359307828,1745903517556,513.01,0.00038356,30]
[359307829,1745903517851,470.0,0.00038356,30]
[359307830,1745903521987,200.0,0.00025938,117]
[359307831,1745903522122,200.0,0.00025489,117]
[359307832,1745903522187,200.0,0.00028452,117]
[359307833,1745903525372,470.0,0.00038356,30]
[359307834,1745903526010,516.75,0.00038356,30]
[359307835,1745903526596,470.0,0.00038356,30]
[359307836,1745903528328,470.0,0.00038356,30]
[359307837,1745903530496,470.0,0.00038356,30]
[359307838,1745903531460,915.93,0.00038356,30]
[359307839,1745903536535,1018.0,0.00038356,30]
[359307840,1745903536676,470.0,0.00038356,30]
[359307841,1745903537800,470.0,0.00038356,30]
[359307842,1745903537909,669.34,0.00038356,30]
[359307843,1745903538735,604.06,0.00038356,30]
[359307844,1745903538900,728.97,0.00038356,30]
[359307845,1745903541314,470.0,0.00038356,30]
[359307846,1745903541431,470.0,0.00038356,30]
[359307847,1745903542106,521.63,0.00038356,30]
[359307848,1745903542161,470.0,0.00038356,30]
[359307849,1745903545547,1018.85,0.00038356,30]
[359307850,1745903546238,470.0,0.00038356,30]
[359307851,1745903546327,470.0,0.00038356,30]
[359307852,1745903547992,470.0,0.00038356,30]
[359307853,1745903548056,470.0,0.00038356,30]
[359307854,1745903548935,495.3,0.00038356,30]
[359307855,1745903549481,470.0,0.00038356,30]
[359307856,1745903551243,470.0,0.00038356,30]
[359307857,1745903552576,512.57,0.00038356,30]
[359307858,1745903553345,530.33,0.00038356,30]
[359307859,1745903553505,470.0,0.00038356,30]
[359307860,1745903554268,470.0,0.00038356,30]
[359307861,1745903555754,470.0,0.00038356,30]
[359307862,1745903556299,575.72,0.00038356,30]
[359307863,1745903556396,470.0,0.00038356,30]
[359307864,1745903556540,529.85,0.00038356,30]
[359307865,1745903557589,557.7,0.00038356,30]
[359307866,1745903558359,470.0,0.00038356,30]
[359307867,1745903560008,1508.26,0.00038356,30]
[359307868,1745903561592,500.71,0.00038356,30]
[359307869,1745903562156,470.0,0.00038356,30]
[359307870,1745903563171,470.0,0.00038356,30]
[359307871,1745903564501,1291.83,0.00038356,30]
[359307872,1745903565067,470.0,0.00038356,30]
[359307873,1745903565367,470.0,0.00038356,30]
[359307874,1745903566911,470.0,0.00038356,30]
[359307875,1745903568193,1055.6,0.00038356,30]
[359307876,1745903568454,470.0,0.00038356,30]
[359307877,1745903572828,470.0,0.00038356,30]
[359307878,1745903573395,470.0,0.00038356,30]
[359307879,1745903573524,470.0,0.00038356,30]
[359307880,1745903573586,496.51,0.00038356,30]
[359307881,1745903574576,498.85,0.00038356,30]
[359307882,1745903575168,2295.98,0.00038356,30]
[359307883,1745903575822,501.01,0.00038356,30]
[359307884,1745903576186,847.48,0.00038356,30]
[359307885,1745903578047,208.73294544,0.00038356,30]
[359307886,1745903578101,470.0,0.00038356,30]
[359307887,1745903581733,400.0,0.00038356,30]
[359307888,1745903581937,681.78,0.00036844,120]
[359307889,1745903583042,825.38,0.00038356,30]
[359307890,1745903585093,470.0,0.00038356,30]
[359307891,1745903585627,470.0,0.00038356,30]
[359307892,1745903586176,602.5,0.00038356,30]
[359307893,1745903586286,470.0,0.00038356,30]
[359307894,1745903589068,663.87,0.00038356,30]
[359307895,1745903590055,754.73,0.00038356,30]
[359307896,1745903593155,1037.34,0.00038356,30]
[359307897,1745903593490,470.0,0.00038356,30]
[359307898,1745903594488,470.0,0.00038356,30]
[359307899,1745903596237,611.15093728,0.00038356,30]
[359307900,1745903597735,1008.3,0.00038356,30]
[359307901,1745903597941,470.0,0.00038356,30]
[359307902,1745903598500,756.86,0.00038356,30]
[359307903,1745903598985,210.0,0.00038356,30]
[359307904,1745903599568,470.0,0.00038356,30]
[359307905,1745903599980,470.0,0.00038356,30]
[359307906,1745903600671,948.78,0.00038356,30]
[359307907,1745903600773,566.25,0.00038356,30]
[359307908,1745903602089,470.0,0.00038356,30]
[359307909,1745903606454,580.04,0.00038356,30]
[359307910,1745903606540,470.0,0.00038356,30]
[359307911,1745903606963,470.0,0.00038356,30]
[359307912,1745903607032,512.69,0.00038356,30]
[359307913,1745903608370,499.01,0.00038356,30]
[359307914,1745903609484,603.49,0.00038356,30]
[359307915,1745903610152,300.0,0.00038356,30]
[359307916,1745903610890,470.0,0.00038356,30]
[359307917,1745903613811,840.15,0.00038356,30]
[359307918,1745903613993,1180.87,0.00038356,30]
[359307919,1745903615318,470.0,0.00038356,30]
[359307920,1745903615682,470.0,0.00038356,30]
[359307921,1745903616707,986.69,0.00038356,30]
[359307922,1745903617344,470.0,0.00038356,30]
[359307923,1745903619387,470.0,0.00038356,30]
[359307924,1745903621618,630.48,0.00038356,30]
[359307925,1745903624492,470.0,0.00038356,30]
[359307926,1745903625036,650.45,0.00038356,30]
[359307927,1745903625595,533.63,0.00038356,30]
[359307928,1745903626390,778.83,0.00038356,30]
[359307929,1745903627221,470.0,0.00038356,30]
[359307930,1745903628564,552.01,0.00038356,30]
[359307931,1745903629715,1419.55,0.00038356,30]
[359307932,1745903633096,912.33,0.00038356,30]
[359307933,1745903634473,470.0,0.00038356,30]
[359307934,1745903636614,470.0,0.00038356,30]
[359307935,1745903637005,470.0,0.00038356,30]
[359307936,1745903638009,999.83,0.00038356,30]
[359307937,1745903641173,470.0,0.00038356,30]
[359307938,1745903642047,868.99,0.00038356,30]